Workbook

Sheet Registro de millas
B1: REGISTRO DE MILLAS
C11: REEMBOLSABLE | E11: TOTAL
C12: MILLAS | E12: REEMBOLSO
C17: 2012-05-01 | E17: 2012-05-10
C19: PERIODO | E19: PERIODO
C20: INICIO | E20: FIN
C26: 54 | E26: 9,800
C28: REEMBOLSO | E28: COMBUSTIBLE ANTERIOR
C29: ¢/Mile | E29: ODÓMETRO

Sheet Datos de registro
B1: REGISTRO DE MILLAS
B5: FECHA | C5: ACTIVIDAD | D5: ODOM. 1 | E5: UBICACIÓN | F5: ODOM. 2 | G5: DESTINO | H5: REMBOLSAR | I5: GALONES | J5: COSTO | K5: MILLAS | L5: MPG | M5: ¢/MILE | N5: NOTAS
B6: 2012-05-01 | C6: Viaje | D6: 10,123 | E6: Chevron - Main St | F6: 10,130 | I6: 15.56 | J6: 64.11 € | K6: =Millas -> 7 | L6: =IF(OR(LEN(Datos[[#This Row],[ODOM. 2]]),Datos[[#This Row],[ODOM. 1]]=""),"",IFERROR(Datos[[#This Row],[MILLAS]]/Datos[[#This Row],[GALONES]],"")) ->  | M6: =IF(Datos[[#This Row],[MPG]]="","",100*Datos[[#This Row],[COSTO]]/Datos[[#This Row],[MILLAS]]) -> 
B7: 2012-05-01 | C7: Viaje | D7: 10,130 | E7: Oficina | F7: 10,200 | G7: Cherry Street | H7: Sí | K7: =Millas -> 70 | L7: =IF(OR(LEN(Datos[[#This Row],[ODOM. 2]]),Datos[[#This Row],[ODOM. 1]]=""),"",IFERROR(Datos[[#This Row],[MILLAS]]/Datos[[#This Row],[GALONES]],"")) ->  | M7: =IF(Datos[[#This Row],[MPG]]="","",100*Datos[[#This Row],[COSTO]]/Datos[[#This Row],[MILLAS]]) -> 
B8: 2012-05-01 | C8: Viaje | D8: 10,200 | E8: Smithfields | F8: 10,285 | G8: Oficina | H8: Sí | K8: =Millas -> 85 | L8: =IF(OR(LEN(Datos[[#This Row],[ODOM. 2]]),Datos[[#This Row],[ODOM. 1]]=""),"",IFERROR(Datos[[#This Row],[MILLAS]]/Datos[[#This Row],[GALONES]],"")) ->  | M8: =IF(Datos[[#This Row],[MPG]]="","",100*Datos[[#This Row],[COSTO]]/Datos[[#This Row],[MILLAS]]) -> 
B9: 2012-05-02 | C9: Viaje | D9: 10,285 | E9: Oficina | F9: 10,450 | G9: Colo Vineyard | H9: Sí | K9: =Millas -> 165 | L9: =IF(OR(LEN(Datos[[#This Row],[ODOM. 2]]),Datos[[#This Row],[ODOM. 1]]=""),"",IFERROR(Datos[[#This Row],[MILLAS]]/Datos[[#This Row],[GALONES]],"")) ->  | M9: =IF(Datos[[#This Row],[MPG]]="","",100*Datos[[#This Row],[COSTO]]/Datos[[#This Row],[MILLAS]]) -> 
B10: 2012-05-02 | C10: Combustible | D10: 10,450 | E10: Shell | I10: 11.20 | J10: 55.42 € | K10: =Millas -> 650 | L10: =IF(OR(LEN(Datos[[#This Row],[ODOM. 2]]),Datos[[#This Row],[ODOM. 1]]=""),"",IFERROR(Datos[[#This Row],[MILLAS]]/Datos[[#This Row],[GALONES]],"")) -> 58.0 | M10: =IF(Datos[[#This Row],[MPG]]="","",100*Datos[[#This Row],[COSTO]]/Datos[[#This Row],[MILLAS]]) -> 8.5
B11: 2012-05-02 | C11: Viaje | D11: 10,500 | E11: Colo Vineyard | F11: 10,518 | G11: Oficina | H11: Sí | K11: =Millas -> 18 | L11: =IF(OR(LEN(Datos[[#This Row],[ODOM. 2]]),Datos[[#This Row],[ODOM. 1]]=""),"",IFERROR(Datos[[#This Row],[MILLAS]]/Datos[[#This Row],[GALONES]],"")) ->  | M11: =IF(Datos[[#This Row],[MPG]]="","",100*Datos[[#This Row],[COSTO]]/Datos[[#This Row],[MILLAS]]) -> 
B12: 2012-05-03 | C12: Viaje | D12: 10,518 | E12: Oficina | F12: 10,745 | G12: Oficina | H12: Sí | K12: =Millas -> 227 | L12: =IF(OR(LEN(Datos[[#This Row],[ODOM. 2]]),Datos[[#This Row],[ODOM. 1]]=""),"",IFERROR(Datos[[#This Row],[MILLAS]]/Datos[[#This Row],[GALONES]],"")) ->  | M12: =IF(Datos[[#This Row],[MPG]]="","",100*Datos[[#This Row],[COSTO]]/Datos[[#This Row],[MILLAS]]) -> 
B13: 2012-05-04 | C13: Combustible | D13: 10,745 | E13: Chevron - Main St | I13: 16.60 | J13: 69.24 € | K13: =Millas -> 295 | L13: =IF(OR(LEN(Datos[[#This Row],[ODOM. 2]]),Datos[[#This Row],[ODOM. 1]]=""),"",IFERROR(Datos[[#This Row],[MILLAS]]/Datos[[#This Row],[GALONES]],"")) -> 17.8 | M13: =IF(Datos[[#This Row],[MPG]]="","",100*Datos[[#This Row],[COSTO]]/Datos[[#This Row],[MILLAS]]) -> 23.5
B14: 2012-05-04 | C14: Viaje | D14: 10,745 | E14: Oficina | F14: 10,800 | G14: Porterville | H14: Sí | K14: =Millas -> 55 | L14: =IF(OR(LEN(Datos[[#This Row],[ODOM. 2]]),Datos[[#This Row],[ODOM. 1]]=""),"",IFERROR(Datos[[#This Row],[MILLAS]]/Datos[[#This Row],[GALONES]],"")) ->  | M14: =IF(Datos[[#This Row],[MPG]]="","",100*Datos[[#This Row],[COSTO]]/Datos[[#This Row],[MILLAS]]) -> 
B15: 2012-05-04 | C15: Viaje | D15: 10,800 | E15: Porterville | F15: 10,875 | G15: Oficina | H15: Sí | K15: =Millas -> 75 | L15: =IF(OR(LEN(Datos[[#This Row],[ODOM. 2]]),Datos[[#This Row],[ODOM. 1]]=""),"",IFERROR(Datos[[#This Row],[MILLAS]]/Datos[[#This Row],[GALONES]],"")) ->  | M15: =IF(Datos[[#This Row],[MPG]]="","",100*Datos[[#This Row],[COSTO]]/Datos[[#This Row],[MILLAS]]) -> 
B16: 2012-05-07 | C16: Viaje | D16: 10,875 | E16: Oficina | F16: 10,921 | G16: Cherry Street | H16: Sí | K16: =Millas -> 46 | L16: =IF(OR(LEN(Datos[[#This Row],[ODOM. 2]]),Datos[[#This Row],[ODOM. 1]]=""),"",IFERROR(Datos[[#This Row],[MILLAS]]/Datos[[#This Row],[GALONES]],"")) ->  | M16: =IF(Datos[[#This Row],[MPG]]="","",100*Datos[[#This Row],[COSTO]]/Datos[[#This Row],[MILLAS]]) -> 
B17: 2012-05-07 | C17: Viaje | D17: 10,921 | E17: Smithfields | F17: 10,969 | G17: Oficina | H17: Sí | K17: =Millas -> 48 | L17: =IF(OR(LEN(Datos[[#This Row],[ODOM. 2]]),Datos[[#This Row],[ODOM. 1]]=""),"",IFERROR(Datos[[#This Row],[MILLAS]]/Datos[[#This Row],[GALONES]],"")) ->  | M17: =IF(Datos[[#This Row],[MPG]]="","",100*Datos[[#This Row],[COSTO]]/Datos[[#This Row],[MILLAS]]) -> 
B18: 2012-05-09 | C18: Viaje | D18: 10,969 | E18: Oficina | F18: 11,000 | G18: Riverside | H18: Sí | K18: =Millas -> 31 | L18: =IF(OR(LEN(Datos[[#This Row],[ODOM. 2]]),Datos[[#This Row],[ODOM. 1]]=""),"",IFERROR(Datos[[#This Row],[MILLAS]]/Datos[[#This Row],[GALONES]],"")) ->  | M18: =IF(Datos[[#This Row],[MPG]]="","",100*Datos[[#This Row],[COSTO]]/Datos[[#This Row],[MILLAS]]) -> 
B19: 2012-05-09 | C19: Viaje | D19: 11,000 | E19: Riverside | F19: 11,100 | G19: Inicio | H19: No | K19: =Millas -> 100 | L19: =IF(OR(LEN(Datos[[#This Row],[ODOM. 2]]),Datos[[#This Row],[ODOM. 1]]=""),"",IFERROR(Datos[[#This Row],[MILLAS]]/Datos[[#This Row],[GALONES]],"")) ->  | M19: =IF(Datos[[#This Row],[MPG]]="","",100*Datos[[#This Row],[COSTO]]/Datos[[#This Row],[MILLAS]]) -> 

Sheet Cálculos (hidden)
A1: *** Esta hoja debe permanecer oculta ***
I6: =OFFSET(I9,,segundoeje="costo de combustible") -> ¢/Mile
M7: 2
H8: Viaje | I8: Combustible | J8: Combustible | L8: Segundo eje: | M8: =REPT("MPG",M7=1)&REPT("Costo De Combustible",M7=2) -> Costo De Combustible
H9: Millas conducidas | I9: MPG | J9: ¢/Mile
C10: Millas reembolsables: | D10: =SUMIFS(Datos[MILLAS],Datos[REMBOLSAR],"Sí",Datos[FECHA],">="&Inicioperiodo,Datos[FECHA],"<="&Finperiodo) -> 820 | F10: 1 | G10: =Inicioperiodo -> 2012-05-01 | H10: =SUMIFS(Datos[MILLAS],Datos[FECHA],G10,Datos[ACTIVIDAD],$H$8) -> 162 | I10: =IFERROR(AVERAGEIFS(Datos[MPG],Datos[FECHA],G10,Datos[ACTIVIDAD],$I$8),NA()) ->  | J10: =IFERROR(AVERAGEIFS(Datos[¢/MILE],Datos[FECHA],G10,Datos[ACTIVIDAD],$J$8),NA()) -> 
C11: Reembolso total: | D11: =D10*ReimbursementPerMile/100 -> 442.80 € | F11: 2 | G11: =G10+1 -> 2012-05-02 | H11: =SUMIFS(Datos[MILLAS],Datos[FECHA],G11,Datos[ACTIVIDAD],$H$8) -> 183 | I11: =IFERROR(AVERAGEIFS(Datos[MPG],Datos[FECHA],G11,Datos[ACTIVIDAD],$I$8),NA()) -> 58.0 | J11: =IFERROR(AVERAGEIFS(Datos[¢/MILE],Datos[FECHA],G11,Datos[ACTIVIDAD],$J$8),NA()) -> 8.5
F12: 3 | G12: 2012-05-03 | H12: =SUMIFS(Datos[MILLAS],Datos[FECHA],G12,Datos[ACTIVIDAD],$H$8) -> 227 | I12: =IFERROR(AVERAGEIFS(Datos[MPG],Datos[FECHA],G12,Datos[ACTIVIDAD],$I$8),NA()) ->  | J12: =IFERROR(AVERAGEIFS(Datos[¢/MILE],Datos[FECHA],G12,Datos[ACTIVIDAD],$J$8),NA()) -> 
F13: 4 | G13: 2012-05-04 | H13: =SUMIFS(Datos[MILLAS],Datos[FECHA],G13,Datos[ACTIVIDAD],$H$8) -> 130 | I13: =IFERROR(AVERAGEIFS(Datos[MPG],Datos[FECHA],G13,Datos[ACTIVIDAD],$I$8),NA()) -> 17.8 | J13: =IFERROR(AVERAGEIFS(Datos[¢/MILE],Datos[FECHA],G13,Datos[ACTIVIDAD],$J$8),NA()) -> 23.5
F14: 5 | G14: 2012-05-05 | H14: =SUMIFS(Datos[MILLAS],Datos[FECHA],G14,Datos[ACTIVIDAD],$H$8) -> 0 | I14: =IFERROR(AVERAGEIFS(Datos[MPG],Datos[FECHA],G14,Datos[ACTIVIDAD],$I$8),NA()) ->  | J14: =IFERROR(AVERAGEIFS(Datos[¢/MILE],Datos[FECHA],G14,Datos[ACTIVIDAD],$J$8),NA()) -> 
F15: 6 | G15: 2012-05-06 | H15: =SUMIFS(Datos[MILLAS],Datos[FECHA],G15,Datos[ACTIVIDAD],$H$8) -> 0 | I15: =IFERROR(AVERAGEIFS(Datos[MPG],Datos[FECHA],G15,Datos[ACTIVIDAD],$I$8),NA()) ->  | J15: =IFERROR(AVERAGEIFS(Datos[¢/MILE],Datos[FECHA],G15,Datos[ACTIVIDAD],$J$8),NA()) -> 
F16: 7 | G16: 2012-05-07 | H16: =SUMIFS(Datos[MILLAS],Datos[FECHA],G16,Datos[ACTIVIDAD],$H$8) -> 94 | I16: =IFERROR(AVERAGEIFS(Datos[MPG],Datos[FECHA],G16,Datos[ACTIVIDAD],$I$8),NA()) ->  | J16: =IFERROR(AVERAGEIFS(Datos[¢/MILE],Datos[FECHA],G16,Datos[ACTIVIDAD],$J$8),NA()) -> 
F17: 8 | G17: 2012-05-08 | H17: =SUMIFS(Datos[MILLAS],Datos[FECHA],G17,Datos[ACTIVIDAD],$H$8) -> 0 | I17: =IFERROR(AVERAGEIFS(Datos[MPG],Datos[FECHA],G17,Datos[ACTIVIDAD],$I$8),NA()) ->  | J17: =IFERROR(AVERAGEIFS(Datos[¢/MILE],Datos[FECHA],G17,Datos[ACTIVIDAD],$J$8),NA()) -> 
F18: 9 | G18: 2012-05-09 | H18: =SUMIFS(Datos[MILLAS],Datos[FECHA],G18,Datos[ACTIVIDAD],$H$8) -> 131 | I18: =IFERROR(AVERAGEIFS(Datos[MPG],Datos[FECHA],G18,Datos[ACTIVIDAD],$I$8),NA()) ->  | J18: =IFERROR(AVERAGEIFS(Datos[¢/MILE],Datos[FECHA],G18,Datos[ACTIVIDAD],$J$8),NA()) -> 
F19: 10 | G19: 2012-05-10 | H19: =SUMIFS(Datos[MILLAS],Datos[FECHA],G19,Datos[ACTIVIDAD],$H$8) -> 0 | I19: =IFERROR(AVERAGEIFS(Datos[MPG],Datos[FECHA],G19,Datos[ACTIVIDAD],$I$8),NA()) ->  | J19: =IFERROR(AVERAGEIFS(Datos[¢/MILE],Datos[FECHA],G19,Datos[ACTIVIDAD],$J$8),NA()) -> 
F20: 11 | G20: 2012-05-11 | H20: =SUMIFS(Datos[MILLAS],Datos[FECHA],G20,Datos[ACTIVIDAD],$H$8) -> 0 | I20: =IFERROR(AVERAGEIFS(Datos[MPG],Datos[FECHA],G20,Datos[ACTIVIDAD],$I$8),NA()) ->  | J20: =IFERROR(AVERAGEIFS(Datos[¢/MILE],Datos[FECHA],G20,Datos[ACTIVIDAD],$J$8),NA()) -> 
F21: 12 | G21: 2012-05-12 | H21: =SUMIFS(Datos[MILLAS],Datos[FECHA],G21,Datos[ACTIVIDAD],$H$8) -> 0 | I21: =IFERROR(AVERAGEIFS(Datos[MPG],Datos[FECHA],G21,Datos[ACTIVIDAD],$I$8),NA()) ->  | J21: =IFERROR(AVERAGEIFS(Datos[¢/MILE],Datos[FECHA],G21,Datos[ACTIVIDAD],$J$8),NA()) -> 
F22: 13 | G22: 2012-05-13 | H22: =SUMIFS(Datos[MILLAS],Datos[FECHA],G22,Datos[ACTIVIDAD],$H$8) -> 0 | I22: =IFERROR(AVERAGEIFS(Datos[MPG],Datos[FECHA],G22,Datos[ACTIVIDAD],$I$8),NA()) ->  | J22: =IFERROR(AVERAGEIFS(Datos[¢/MILE],Datos[FECHA],G22,Datos[ACTIVIDAD],$J$8),NA()) -> 
F23: 14 | G23: 2012-05-14 | H23: =SUMIFS(Datos[MILLAS],Datos[FECHA],G23,Datos[ACTIVIDAD],$H$8) -> 0 | I23: =IFERROR(AVERAGEIFS(Datos[MPG],Datos[FECHA],G23,Datos[ACTIVIDAD],$I$8),NA()) ->  | J23: =IFERROR(AVERAGEIFS(Datos[¢/MILE],Datos[FECHA],G23,Datos[ACTIVIDAD],$J$8),NA()) -> 
F24: 15 | G24: 2012-05-15 | H24: =SUMIFS(Datos[MILLAS],Datos[FECHA],G24,Datos[ACTIVIDAD],$H$8) -> 0 | I24: =IFERROR(AVERAGEIFS(Datos[MPG],Datos[FECHA],G24,Datos[ACTIVIDAD],$I$8),NA()) ->  | J24: =IFERROR(AVERAGEIFS(Datos[¢/MILE],Datos[FECHA],G24,Datos[ACTIVIDAD],$J$8),NA()) -> 
F25: 16 | G25: 2012-05-16 | H25: =SUMIFS(Datos[MILLAS],Datos[FECHA],G25,Datos[ACTIVIDAD],$H$8) -> 0 | I25: =IFERROR(AVERAGEIFS(Datos[MPG],Datos[FECHA],G25,Datos[ACTIVIDAD],$I$8),NA()) ->  | J25: =IFERROR(AVERAGEIFS(Datos[¢/MILE],Datos[FECHA],G25,Datos[ACTIVIDAD],$J$8),NA()) -> 
F26: 17 | G26: 2012-05-17 | H26: =SUMIFS(Datos[MILLAS],Datos[FECHA],G26,Datos[ACTIVIDAD],$H$8) -> 0 | I26: =IFERROR(AVERAGEIFS(Datos[MPG],Datos[FECHA],G26,Datos[ACTIVIDAD],$I$8),NA()) ->  | J26: =IFERROR(AVERAGEIFS(Datos[¢/MILE],Datos[FECHA],G26,Datos[ACTIVIDAD],$J$8),NA()) -> 
F27: 18 | G27: 2012-05-18 | H27: =SUMIFS(Datos[MILLAS],Datos[FECHA],G27,Datos[ACTIVIDAD],$H$8) -> 0 | I27: =IFERROR(AVERAGEIFS(Datos[MPG],Datos[FECHA],G27,Datos[ACTIVIDAD],$I$8),NA()) ->  | J27: =IFERROR(AVERAGEIFS(Datos[¢/MILE],Datos[FECHA],G27,Datos[ACTIVIDAD],$J$8),NA()) -> 
F28: 19 | G28: 2012-05-19 | H28: =SUMIFS(Datos[MILLAS],Datos[FECHA],G28,Datos[ACTIVIDAD],$H$8) -> 0 | I28: =IFERROR(AVERAGEIFS(Datos[MPG],Datos[FECHA],G28,Datos[ACTIVIDAD],$I$8),NA()) ->  | J28: =IFERROR(AVERAGEIFS(Datos[¢/MILE],Datos[FECHA],G28,Datos[ACTIVIDAD],$J$8),NA()) -> 
F29: 20 | G29: 2012-05-20 | H29: =SUMIFS(Datos[MILLAS],Datos[FECHA],G29,Datos[ACTIVIDAD],$H$8) -> 0 | I29: =IFERROR(AVERAGEIFS(Datos[MPG],Datos[FECHA],G29,Datos[ACTIVIDAD],$I$8),NA()) ->  | J29: =IFERROR(AVERAGEIFS(Datos[¢/MILE],Datos[FECHA],G29,Datos[ACTIVIDAD],$J$8),NA()) -> 
F30: 21 | G30: 2012-05-21 | H30: =SUMIFS(Datos[MILLAS],Datos[FECHA],G30,Datos[ACTIVIDAD],$H$8) -> 0 | I30: =IFERROR(AVERAGEIFS(Datos[MPG],Datos[FECHA],G30,Datos[ACTIVIDAD],$I$8),NA()) ->  | J30: =IFERROR(AVERAGEIFS(Datos[¢/MILE],Datos[FECHA],G30,Datos[ACTIVIDAD],$J$8),NA()) -> 
F31: 22 | G31: 2012-05-22 | H31: =SUMIFS(Datos[MILLAS],Datos[FECHA],G31,Datos[ACTIVIDAD],$H$8) -> 0 | I31: =IFERROR(AVERAGEIFS(Datos[MPG],Datos[FECHA],G31,Datos[ACTIVIDAD],$I$8),NA()) ->  | J31: =IFERROR(AVERAGEIFS(Datos[¢/MILE],Datos[FECHA],G31,Datos[ACTIVIDAD],$J$8),NA()) -> 
F32: 23 | G32: 2012-05-23 | H32: =SUMIFS(Datos[MILLAS],Datos[FECHA],G32,Datos[ACTIVIDAD],$H$8) -> 0 | I32: =IFERROR(AVERAGEIFS(Datos[MPG],Datos[FECHA],G32,Datos[ACTIVIDAD],$I$8),NA()) ->  | J32: =IFERROR(AVERAGEIFS(Datos[¢/MILE],Datos[FECHA],G32,Datos[ACTIVIDAD],$J$8),NA()) -> 
F33: 24 | G33: 2012-05-24 | H33: =SUMIFS(Datos[MILLAS],Datos[FECHA],G33,Datos[ACTIVIDAD],$H$8) -> 0 | I33: =IFERROR(AVERAGEIFS(Datos[MPG],Datos[FECHA],G33,Datos[ACTIVIDAD],$I$8),NA()) ->  | J33: =IFERROR(AVERAGEIFS(Datos[¢/MILE],Datos[FECHA],G33,Datos[ACTIVIDAD],$J$8),NA()) -> 
F34: 25 | G34: 2012-05-25 | H34: =SUMIFS(Datos[MILLAS],Datos[FECHA],G34,Datos[ACTIVIDAD],$H$8) -> 0 | I34: =IFERROR(AVERAGEIFS(Datos[MPG],Datos[FECHA],G34,Datos[ACTIVIDAD],$I$8),NA()) ->  | J34: =IFERROR(AVERAGEIFS(Datos[¢/MILE],Datos[FECHA],G34,Datos[ACTIVIDAD],$J$8),NA()) -> 
F35: 26 | G35: 2012-05-26 | H35: =SUMIFS(Datos[MILLAS],Datos[FECHA],G35,Datos[ACTIVIDAD],$H$8) -> 0 | I35: =IFERROR(AVERAGEIFS(Datos[MPG],Datos[FECHA],G35,Datos[ACTIVIDAD],$I$8),NA()) ->  | J35: =IFERROR(AVERAGEIFS(Datos[¢/MILE],Datos[FECHA],G35,Datos[ACTIVIDAD],$J$8),NA()) -> 
F36: 27 | G36: 2012-05-27 | H36: =SUMIFS(Datos[MILLAS],Datos[FECHA],G36,Datos[ACTIVIDAD],$H$8) -> 0 | I36: =IFERROR(AVERAGEIFS(Datos[MPG],Datos[FECHA],G36,Datos[ACTIVIDAD],$I$8),NA()) ->  | J36: =IFERROR(AVERAGEIFS(Datos[¢/MILE],Datos[FECHA],G36,Datos[ACTIVIDAD],$J$8),NA()) -> 
F37: 28 | G37: 2012-05-28 | H37: =SUMIFS(Datos[MILLAS],Datos[FECHA],G37,Datos[ACTIVIDAD],$H$8) -> 0 | I37: =IFERROR(AVERAGEIFS(Datos[MPG],Datos[FECHA],G37,Datos[ACTIVIDAD],$I$8),NA()) ->  | J37: =IFERROR(AVERAGEIFS(Datos[¢/MILE],Datos[FECHA],G37,Datos[ACTIVIDAD],$J$8),NA()) -> 
F38: 29 | G38: 2012-05-29 | H38: =SUMIFS(Datos[MILLAS],Datos[FECHA],G38,Datos[ACTIVIDAD],$H$8) -> 0 | I38: =IFERROR(AVERAGEIFS(Datos[MPG],Datos[FECHA],G38,Datos[ACTIVIDAD],$I$8),NA()) ->  | J38: =IFERROR(AVERAGEIFS(Datos[¢/MILE],Datos[FECHA],G38,Datos[ACTIVIDAD],$J$8),NA()) -> 
F39: 30 | G39: 2012-05-30 | H39: =SUMIFS(Datos[MILLAS],Datos[FECHA],G39,Datos[ACTIVIDAD],$H$8) -> 0 | I39: =IFERROR(AVERAGEIFS(Datos[MPG],Datos[FECHA],G39,Datos[ACTIVIDAD],$I$8),NA()) ->  | J39: =IFERROR(AVERAGEIFS(Datos[¢/MILE],Datos[FECHA],G39,Datos[ACTIVIDAD],$J$8),NA()) -> 
F40: 31 | G40: 2012-05-31 | H40: =SUMIFS(Datos[MILLAS],Datos[FECHA],G40,Datos[ACTIVIDAD],$H$8) -> 0 | I40: =IFERROR(AVERAGEIFS(Datos[MPG],Datos[FECHA],G40,Datos[ACTIVIDAD],$I$8),NA()) ->  | J40: =IFERROR(AVERAGEIFS(Datos[¢/MILE],Datos[FECHA],G40,Datos[ACTIVIDAD],$J$8),NA()) -> 
F41: 32 | G41: 2012-06-01 | H41: =SUMIFS(Datos[MILLAS],Datos[FECHA],G41,Datos[ACTIVIDAD],$H$8) -> 0 | I41: =IFERROR(AVERAGEIFS(Datos[MPG],Datos[FECHA],G41,Datos[ACTIVIDAD],$I$8),NA()) ->  | J41: =IFERROR(AVERAGEIFS(Datos[¢/MILE],Datos[FECHA],G41,Datos[ACTIVIDAD],$J$8),NA()) -> 
F42: 33 | G42: 2012-06-02 | H42: =SUMIFS(Datos[MILLAS],Datos[FECHA],G42,Datos[ACTIVIDAD],$H$8) -> 0 | I42: =IFERROR(AVERAGEIFS(Datos[MPG],Datos[FECHA],G42,Datos[ACTIVIDAD],$I$8),NA()) ->  | J42: =IFERROR(AVERAGEIFS(Datos[¢/MILE],Datos[FECHA],G42,Datos[ACTIVIDAD],$J$8),NA()) -> 
F43: 34 | G43: =G42+1 -> 2012-06-03 | H43: =SUMIFS(Datos[MILLAS],Datos[FECHA],G43,Datos[ACTIVIDAD],$H$8) -> 0 | I43: =IFERROR(AVERAGEIFS(Datos[MPG],Datos[FECHA],G43,Datos[ACTIVIDAD],$I$8),NA()) ->  | J43: =IFERROR(AVERAGEIFS(Datos[¢/MILE],Datos[FECHA],G43,Datos[ACTIVIDAD],$J$8),NA()) -> 
F44: 35 | G44: 2012-06-04 | H44: =SUMIFS(Datos[MILLAS],Datos[FECHA],G44,Datos[ACTIVIDAD],$H$8) -> 0 | I44: =IFERROR(AVERAGEIFS(Datos[MPG],Datos[FECHA],G44,Datos[ACTIVIDAD],$I$8),NA()) ->  | J44: =IFERROR(AVERAGEIFS(Datos[¢/MILE],Datos[FECHA],G44,Datos[ACTIVIDAD],$J$8),NA()) -> 
F45: 36 | G45: 2012-06-05 | H45: =SUMIFS(Datos[MILLAS],Datos[FECHA],G45,Datos[ACTIVIDAD],$H$8) -> 0 | I45: =IFERROR(AVERAGEIFS(Datos[MPG],Datos[FECHA],G45,Datos[ACTIVIDAD],$I$8),NA()) ->  | J45: =IFERROR(AVERAGEIFS(Datos[¢/MILE],Datos[FECHA],G45,Datos[ACTIVIDAD],$J$8),NA()) -> 
F46: 37 | G46: 2012-06-06 | H46: =SUMIFS(Datos[MILLAS],Datos[FECHA],G46,Datos[ACTIVIDAD],$H$8) -> 0 | I46: =IFERROR(AVERAGEIFS(Datos[MPG],Datos[FECHA],G46,Datos[ACTIVIDAD],$I$8),NA()) ->  | J46: =IFERROR(AVERAGEIFS(Datos[¢/MILE],Datos[FECHA],G46,Datos[ACTIVIDAD],$J$8),NA()) -> 
F47: 38 | G47: 2012-06-07 | H47: =SUMIFS(Datos[MILLAS],Datos[FECHA],G47,Datos[ACTIVIDAD],$H$8) -> 0 | I47: =IFERROR(AVERAGEIFS(Datos[MPG],Datos[FECHA],G47,Datos[ACTIVIDAD],$I$8),NA()) ->  | J47: =IFERROR(AVERAGEIFS(Datos[¢/MILE],Datos[FECHA],G47,Datos[ACTIVIDAD],$J$8),NA()) -> 
F48: 39 | G48: 2012-06-08 | H48: =SUMIFS(Datos[MILLAS],Datos[FECHA],G48,Datos[ACTIVIDAD],$H$8) -> 0 | I48: =IFERROR(AVERAGEIFS(Datos[MPG],Datos[FECHA],G48,Datos[ACTIVIDAD],$I$8),NA()) ->  | J48: =IFERROR(AVERAGEIFS(Datos[¢/MILE],Datos[FECHA],G48,Datos[ACTIVIDAD],$J$8),NA()) -> 
F49: 40 | G49: 2012-06-09 | H49: =SUMIFS(Datos[MILLAS],Datos[FECHA],G49,Datos[ACTIVIDAD],$H$8) -> 0 | I49: =IFERROR(AVERAGEIFS(Datos[MPG],Datos[FECHA],G49,Datos[ACTIVIDAD],$I$8),NA()) ->  | J49: =IFERROR(AVERAGEIFS(Datos[¢/MILE],Datos[FECHA],G49,Datos[ACTIVIDAD],$J$8),NA()) -> 
F50: 41 | G50: 2012-06-10 | H50: =SUMIFS(Datos[MILLAS],Datos[FECHA],G50,Datos[ACTIVIDAD],$H$8) -> 0 | I50: =IFERROR(AVERAGEIFS(Datos[MPG],Datos[FECHA],G50,Datos[ACTIVIDAD],$I$8),NA()) ->  | J50: =IFERROR(AVERAGEIFS(Datos[¢/MILE],Datos[FECHA],G50,Datos[ACTIVIDAD],$J$8),NA()) -> 
F51: 42 | G51: 2012-06-11 | H51: =SUMIFS(Datos[MILLAS],Datos[FECHA],G51,Datos[ACTIVIDAD],$H$8) -> 0 | I51: =IFERROR(AVERAGEIFS(Datos[MPG],Datos[FECHA],G51,Datos[ACTIVIDAD],$I$8),NA()) ->  | J51: =IFERROR(AVERAGEIFS(Datos[¢/MILE],Datos[FECHA],G51,Datos[ACTIVIDAD],$J$8),NA()) -> 
F52: 43 | G52: 2012-06-12 | H52: =SUMIFS(Datos[MILLAS],Datos[FECHA],G52,Datos[ACTIVIDAD],$H$8) -> 0 | I52: =IFERROR(AVERAGEIFS(Datos[MPG],Datos[FECHA],G52,Datos[ACTIVIDAD],$I$8),NA()) ->  | J52: =IFERROR(AVERAGEIFS(Datos[¢/MILE],Datos[FECHA],G52,Datos[ACTIVIDAD],$J$8),NA()) -> 
F53: 44 | G53: 2012-06-13 | H53: =SUMIFS(Datos[MILLAS],Datos[FECHA],G53,Datos[ACTIVIDAD],$H$8) -> 0 | I53: =IFERROR(AVERAGEIFS(Datos[MPG],Datos[FECHA],G53,Datos[ACTIVIDAD],$I$8),NA()) ->  | J53: =IFERROR(AVERAGEIFS(Datos[¢/MILE],Datos[FECHA],G53,Datos[ACTIVIDAD],$J$8),NA()) -> 
F54: 45 | G54: 2012-06-14 | H54: =SUMIFS(Datos[MILLAS],Datos[FECHA],G54,Datos[ACTIVIDAD],$H$8) -> 0 | I54: =IFERROR(AVERAGEIFS(Datos[MPG],Datos[FECHA],G54,Datos[ACTIVIDAD],$I$8),NA()) ->  | J54: =IFERROR(AVERAGEIFS(Datos[¢/MILE],Datos[FECHA],G54,Datos[ACTIVIDAD],$J$8),NA()) -> 
F55: 46 | G55: 2012-06-15 | H55: =SUMIFS(Datos[MILLAS],Datos[FECHA],G55,Datos[ACTIVIDAD],$H$8) -> 0 | I55: =IFERROR(AVERAGEIFS(Datos[MPG],Datos[FECHA],G55,Datos[ACTIVIDAD],$I$8),NA()) ->  | J55: =IFERROR(AVERAGEIFS(Datos[¢/MILE],Datos[FECHA],G55,Datos[ACTIVIDAD],$J$8),NA()) -> 
F56: 47 | G56: 2012-06-16 | H56: =SUMIFS(Datos[MILLAS],Datos[FECHA],G56,Datos[ACTIVIDAD],$H$8) -> 0 | I56: =IFERROR(AVERAGEIFS(Datos[MPG],Datos[FECHA],G56,Datos[ACTIVIDAD],$I$8),NA()) ->  | J56: =IFERROR(AVERAGEIFS(Datos[¢/MILE],Datos[FECHA],G56,Datos[ACTIVIDAD],$J$8),NA()) -> 
F57: 48 | G57: 2012-06-17 | H57: =SUMIFS(Datos[MILLAS],Datos[FECHA],G57,Datos[ACTIVIDAD],$H$8) -> 0 | I57: =IFERROR(AVERAGEIFS(Datos[MPG],Datos[FECHA],G57,Datos[ACTIVIDAD],$I$8),NA()) ->  | J57: =IFERROR(AVERAGEIFS(Datos[¢/MILE],Datos[FECHA],G57,Datos[ACTIVIDAD],$J$8),NA()) -> 
F58: 49 | G58: 2012-06-18 | H58: =SUMIFS(Datos[MILLAS],Datos[FECHA],G58,Datos[ACTIVIDAD],$H$8) -> 0 | I58: =IFERROR(AVERAGEIFS(Datos[MPG],Datos[FECHA],G58,Datos[ACTIVIDAD],$I$8),NA()) ->  | J58: =IFERROR(AVERAGEIFS(Datos[¢/MILE],Datos[FECHA],G58,Datos[ACTIVIDAD],$J$8),NA()) -> 
F59: 50 | G59: 2012-06-19 | H59: =SUMIFS(Datos[MILLAS],Datos[FECHA],G59,Datos[ACTIVIDAD],$H$8) -> 0 | I59: =IFERROR(AVERAGEIFS(Datos[MPG],Datos[FECHA],G59,Datos[ACTIVIDAD],$I$8),NA()) ->  | J59: =IFERROR(AVERAGEIFS(Datos[¢/MILE],Datos[FECHA],G59,Datos[ACTIVIDAD],$J$8),NA()) -> 
F60: 51 | G60: 2012-06-20 | H60: =SUMIFS(Datos[MILLAS],Datos[FECHA],G60,Datos[ACTIVIDAD],$H$8) -> 0 | I60: =IFERROR(AVERAGEIFS(Datos[MPG],Datos[FECHA],G60,Datos[ACTIVIDAD],$I$8),NA()) ->  | J60: =IFERROR(AVERAGEIFS(Datos[¢/MILE],Datos[FECHA],G60,Datos[ACTIVIDAD],$J$8),NA()) -> 
F61: 52 | G61: 2012-06-21 | H61: =SUMIFS(Datos[MILLAS],Datos[FECHA],G61,Datos[ACTIVIDAD],$H$8) -> 0 | I61: =IFERROR(AVERAGEIFS(Datos[MPG],Datos[FECHA],G61,Datos[ACTIVIDAD],$I$8),NA()) ->  | J61: =IFERROR(AVERAGEIFS(Datos[¢/MILE],Datos[FECHA],G61,Datos[ACTIVIDAD],$J$8),NA()) -> 
F62: 53 | G62: 2012-06-22 | H62: =SUMIFS(Datos[MILLAS],Datos[FECHA],G62,Datos[ACTIVIDAD],$H$8) -> 0 | I62: =IFERROR(AVERAGEIFS(Datos[MPG],Datos[FECHA],G62,Datos[ACTIVIDAD],$I$8),NA()) ->  | J62: =IFERROR(AVERAGEIFS(Datos[¢/MILE],Datos[FECHA],G62,Datos[ACTIVIDAD],$J$8),NA()) -> 
F63: 54 | G63: 2012-06-23 | H63: =SUMIFS(Datos[MILLAS],Datos[FECHA],G63,Datos[ACTIVIDAD],$H$8) -> 0 | I63: =IFERROR(AVERAGEIFS(Datos[MPG],Datos[FECHA],G63,Datos[ACTIVIDAD],$I$8),NA()) ->  | J63: =IFERROR(AVERAGEIFS(Datos[¢/MILE],Datos[FECHA],G63,Datos[ACTIVIDAD],$J$8),NA()) -> 
F64: 55 | G64: 2012-06-24 | H64: =SUMIFS(Datos[MILLAS],Datos[FECHA],G64,Datos[ACTIVIDAD],$H$8) -> 0 | I64: =IFERROR(AVERAGEIFS(Datos[MPG],Datos[FECHA],G64,Datos[ACTIVIDAD],$I$8),NA()) ->  | J64: =IFERROR(AVERAGEIFS(Datos[¢/MILE],Datos[FECHA],G64,Datos[ACTIVIDAD],$J$8),NA()) -> 
F65: 56 | G65: 2012-06-25 | H65: =SUMIFS(Datos[MILLAS],Datos[FECHA],G65,Datos[ACTIVIDAD],$H$8) -> 0 | I65: =IFERROR(AVERAGEIFS(Datos[MPG],Datos[FECHA],G65,Datos[ACTIVIDAD],$I$8),NA()) ->  | J65: =IFERROR(AVERAGEIFS(Datos[¢/MILE],Datos[FECHA],G65,Datos[ACTIVIDAD],$J$8),NA()) -> 
F66: 57 | G66: 2012-06-26 | H66: =SUMIFS(Datos[MILLAS],Datos[FECHA],G66,Datos[ACTIVIDAD],$H$8) -> 0 | I66: =IFERROR(AVERAGEIFS(Datos[MPG],Datos[FECHA],G66,Datos[ACTIVIDAD],$I$8),NA()) ->  | J66: =IFERROR(AVERAGEIFS(Datos[¢/MILE],Datos[FECHA],G66,Datos[ACTIVIDAD],$J$8),NA()) -> 
F67: 58 | G67: 2012-06-27 | H67: =SUMIFS(Datos[MILLAS],Datos[FECHA],G67,Datos[ACTIVIDAD],$H$8) -> 0 | I67: =IFERROR(AVERAGEIFS(Datos[MPG],Datos[FECHA],G67,Datos[ACTIVIDAD],$I$8),NA()) ->  | J67: =IFERROR(AVERAGEIFS(Datos[¢/MILE],Datos[FECHA],G67,Datos[ACTIVIDAD],$J$8),NA()) -> 
F68: 59 | G68: 2012-06-28 | H68: =SUMIFS(Datos[MILLAS],Datos[FECHA],G68,Datos[ACTIVIDAD],$H$8) -> 0 | I68: =IFERROR(AVERAGEIFS(Datos[MPG],Datos[FECHA],G68,Datos[ACTIVIDAD],$I$8),NA()) ->  | J68: =IFERROR(AVERAGEIFS(Datos[¢/MILE],Datos[FECHA],G68,Datos[ACTIVIDAD],$J$8),NA()) -> 
F69: 60 | G69: 2012-06-29 | H69: =SUMIFS(Datos[MILLAS],Datos[FECHA],G69,Datos[ACTIVIDAD],$H$8) -> 0 | I69: =IFERROR(AVERAGEIFS(Datos[MPG],Datos[FECHA],G69,Datos[ACTIVIDAD],$I$8),NA()) ->  | J69: =IFERROR(AVERAGEIFS(Datos[¢/MILE],Datos[FECHA],G69,Datos[ACTIVIDAD],$J$8),NA()) -> 
